Cogmind - Beta 15 @@@ ROGUE MODE // 2025.06.08 @ 00:10:17 // Winter2022/Polymind Player: Epsilon 11 Result: Destroyed by QH-75I(R) with Subdweller Machine Gun Performance ------------- Evolutions (0) 0 Regions Visited (2) 400 Robots Destroyed (9) 45 Value Destroyed (183) 183 Prototype IDs (0) 0 Alien Tech Used (0) 0 Bonus (1140) 1140 TOTAL SCORE: 1468 Bonus ------- Polymind Skill 1140 Cogmind --------- Core Integrity 0/250 Matter 100/100 Energy 150/150 System Corruption 0% Temperature Warm (149) Movement Rolling (110) Location -10/Subcaves Parts ------- > --- POWER (1) -------- Subdweller Power Source > --- PROPULSION (1) --- Subdweller Monowheel > --- UTILITY (4) ------ Disposable Heat Sink Subdweller Optics > --- WEAPON (1) ------- Subdweller Beam Cannon > --- INVENTORY (2) ---- Scrap Shield Fragment (46) Scrap Shield Fragment (46) Peak State ------------ > --- POWER ------------ Subdweller Power Source > --- PROPULSION ------- Subdweller Monowheel > --- UTILITY ---------- Disposable Heat Sink Subdweller Optics Scrap Shield > --- WEAPON ----------- Subdweller Beam Cannon > --- INVENTORY -------- (None) [Rating: 14] Favorites ----------- Power Light Ion Engine Engine Light Ion Engine Power Core Light Nuclear Core Propulsion Wheel Leg Aluminum Leg Wheel Wheel Flight Unit Flight Unit Utility Improved Terrain Scanner Device Improved Terrain Scanner Protection Scrap Shield Weapon Particle Gun Energy Gun Particle Gun Energy Cannon Subdweller Beam Cannon Ballistic Gun Light Assault Rifle Special Weapon Mining Laser Build | -11 -10 -10 ------- Run | Yrd Mat Sub Slots Evolved . | . . . Power . | . . . Propulsion . | . . . Utility . | . . . Weapon . | . . . Parts Attached . | . . . Power . | . . . Engine . | . . . Core . | . . . Reactor . | . . . Propulsion . | . . . Treads . | . . . Leg . | . . . Wheel . | . . . Hover . | . . . Flight . | . . . Utility . | . . . Device . | . . . Storage . | . . . Processor . | . . . Hackware . | . . . Protection . | . . . Artifact . | . . . Weapon . | . . . Energy Gun . | . . . Energy Cannon . | . . . Ballistic Gun . | . . . Ballistic Cannon . | . . . Launcher . | . . . Special Weapon . | . . . Impact Weapon . | . . . Slashing Weapon . | . . . Piercing Weapon . | . . . Special Melee Weapon . | . . . Unidentified Prototypes . | . . . Parts Lost 5 | . 3 2 Power 1 | . 1 . Propulsion 1 | . 1 . Utility 1 | . . 1 Weapon 2 | . 1 1 Highest Loss Streak 3 | . 3 1 To Critical Strikes . | . . . Average Backups . | . . . Power . | . . . Propulsion . | . . . Utility . | . . . Weapon . | . . . Tool/Special . | . . . Unused Backups . | . . . Power . | . . . Propulsion . | . . . Utility . | . . . Weapon . | . . . Tool/Special . | . . . Average Slot Usage (%) 83 | . 84 81 Engine 8 | . 2 14 Core 6 | . 13 . Leg 12 | . 26 . Wheel 14 | . . 27 Flight 4 | . 9 . Device 22 | . 13 30 Protection 1 | . . 2 Energy Gun 6 | . 13 . Energy Cannon 1 | . . 3 Ballistic Gun 2 | . 5 . Special Weapon 1 | . . 2 Peak Build Rating 14 | . 10 14 Average Rating 7 | . 7 8 On Entrance 2 | . . 8 Naked Turns 68 | . 43 25 Heaviest Build 34 | . 9 34 Greatest Support 20 | 3 20 20 Greatest Overweight (x) 1 | . . 1 Average Overweight (x) . | . . . Largest Inventory Capacity 2 | . 1 2 Average Capacity . | . . . Most Carried 2 | . . 2 Average Carried . | . . . Final Capacity 2 | . . 2 Final Carried 2 | . . 2 Class Distribution -------------------- 37% | Tunneler 32% | Grunt 11% | Subdweller 10% | Swarmer 8% | Cogmind Dominant Class ---------------- Grunt | -10/Materials Tunneler | -10/Subcaves Resources | -11 -10 -10 ----------- Run | Yrd Mat Sub Matter Collected 8 | . 8 . Remotely . | . . . Salvage Created 197 | . 120 77 Parts 18 | . 14 4 Haulers Intercepted . | . . . Recyclers Shooed 1 | . 1 . Parts Field Recycled . | . . . Retrieved Matter . | . . . Parts Self-Destructed 3 | . . 3 Prevented . | . . . Kills | -11 -10 -10 ------- Run | Yrd Mat Sub Combat Hostiles Destroyed 8 | . 7 1 Guns 7 | . 7 . Cannons 1 | . . 1 Classes Destroyed 4 | . 3 1 Worker 1 | . 1 . Swarmer 4 | . 4 . Grunt 3 | . 3 . Subdweller 1 | . . 1 Best Kill Streak 3 | . 3 1 Combat Bots Only 2 | . 2 1 Max Kills in Single Turn 1 | . 1 1 Gunslinging . | . . . Exploded . | . . . Melee . | . . . Uniques/NPCs Destroyed . | . . . Combat | -11 -10 -10 -------- Run | Yrd Mat Sub Hostile Shots Fired 76 | . 48 28 Missed 19 | . 16 3 Hits 57 | . 32 25 Projectile 57 | . 32 25 Critical Strikes 2 | . 1 1 Damage Taken 920 | . 402 518 Core 259 | . 133 126 Absorbed by Shields . | . . . Core Remaining (%) 100 | 100 . . Volleys Fired 63 | . 51 12 Largest 1 | . 1 1 Hottest 80 | . 65 80 Shots Fired 63 | . 51 12 Gun 51 | . 51 . Cannon 12 | . . 12 Launcher . | . . . Special . | . . . Kinetic 33 | . 33 . Thermal 30 | . 18 12 Explosive . | . . . Electromagnetic . | . . . Robot Hit Streak 18 | . 18 4 Robot Miss Streak 2 | . 2 2 Penetration Max . | . . . Secondary Targets . | . . . Shots Hit Robots 50 | . 42 8 Core Hits 14 | . 13 1 Critical Kills 1 | . 1 . Critical Parts Destroyed . | . . . Critical Strikes 3 | . 3 . Burn 2 | . 2 . Destroy 1 | . 1 . Melee Attacks . | . . . Impact . | . . . Slashing . | . . . Piercing . | . . . Sneak Attacks . | . . . Combat Hostiles . | . . . Follow-up Attacks . | . . . Damage Inflicted 682 | . 445 237 Guns 437 | . 437 . Cannons 237 | . . 237 Explosions . | . . . Melee . | . . . Ramming 8 | . 8 . Kinetic 221 | . 221 . Thermal 453 | . 216 237 Explosive . | . . . Electromagnetic . | . . . Impact . | . . . Slashing . | . . . Piercing . | . . . Highest Corruption . | . . . Average Corruption . | . . . Corruption Purged . | . . . Corruption Blocked . | . . . Overload Shots . | . . . Overflow Damage . | . . . Projectiles . | . . . Explosions . | . . . Melee . | . . . Knockbacks 1 | . 1 . Impact 1 | . 1 . Kinetic . | . . . Secondary . | . . . Self-Inflicted Damage . | . . . Shots . | . . . Rammed . | . . . Targets Rammed 5 | . 5 . Kicked 5 | . 5 . Crushed . | . . . Highest Temperature 188 | . 43 188 Average Temperature 38 | . 14 93 Received Heat Transfer 243 | . 213 30 Siege Activations . | . . . Martial Activations . | . . . Shielding Activations . | . . . Robots Disrupted . | . . . Combat Hostiles . | . . . Robots Corrupted . | . . . Combat Hostiles . | . . . Parts Fried . | . . . Impact Corruptions . | . . . Robots Melted . | . . . Combat Hostiles . | . . . Parts Melted 2 | . 2 . Heat Transferred 962 | . 666 296 Parts Sabotaged . | . . . Parts Stolen . | . . . Parts Stripped . | . . . Power Chain Reactions . | . . . Alert | -11 -10 -10 ------- Run | Yrd Mat Sub Maximum Alert Level . | . . . Low Security (%) 100 | 100 100 . Level 1 . | . . . Level 2 . | . . . Level 3 . | . . . Level 4 . | . . . Level 5 . | . . . High Security . | . . . Max Security . | . . . Peak Influence 65 | . 65 . Initial . | . . . Average 26 | . 26 . Influence Increases 241 | . 241 . Destroy 0b10 Robot/C 140 | . 140 . Destroy 0b10 Robot/NC 5 | . 5 . Destroy Leader 20 | . 20 . Successful Hack 46 | . 46 . Lose Combat Pursuer 30 | . 30 . Influence Decreases 241 | . 203 38 Entered New Map 19 | . . 19 Time Decay 201 | . 182 19 Lost Part 20 | . 20 . Miscellaneous 1 | . 1 . Squads Dispatched 1 | . 1 . Investigation . | . . . Extermination . | . . . Reinforcement 1 | . 1 . Assault . | . . . Garrison . | . . . Intercept . | . . . Searches Triggered . | . . . Construction Impeded . | . . . Haulers Reinforced . | . . . Active Scanning Responses . | . . . Cargo Convoy Interrupts . | . . . Stealth | -11 -10 -10 --------- Run | Yrd Mat Sub Distress Signals 1 | . 1 . Communications Jammed . | . . . Distress Signals . | . . . Times Spotted 25 | . 18 7 Peak Tracking Total 4 | . 4 2 Tactical Retreats 3 | . 2 1 Traps | -11 -10 -10 ------- Run | Yrd Mat Sub Traps Triggered . | . . . Indirectly . | . . . Trap Hack Attempts . | . . . Triggered . | . . . Disarmed . | . . . Reprogrammed . | . . . Reused . | . . . Traps Extracted . | . . . Installed . | . . . Triggered . | . . . Machines | -11 -10 -10 ---------- Run | Yrd Mat Sub Machines Disabled . | . . . Max in Single Turn . | . . . Machines Repaired . | . . . Machines Dismantled . | . . . Machines Sabotaged . | . . . Overloaded Fab Kills . | . . . Hacking | -11 -10 -10 --------- Run | Yrd Mat Sub Machines Accessed 7 | . 7 . Terminals 6 | . 6 . Fabricators . | . . . Repair Stations . | . . . Recycling Units 1 | . 1 . Scanalyzers . | . . . Garrison Access . | . . . Total Hacks 26 | . 26 . Successful 18 | . 18 . Failed 8 | . 8 . Catastrophic 3 | . 3 . Database Lockouts . | . . . Manual 20 | . 20 . Terminals 23 | . 23 . Fabricators . | . . . Repair Stations . | . . . Recycling Units 3 | . 3 . Scanalyzers . | . . . Garrison Access . | . . . Terminal Hacks 7 | . 7 . Robot Analysis 1 | . 1 . Terminal Index 1 | . 1 . Recycling Unit Index 1 | . 1 . Locate Traps 1 | . 1 . Maintenance Status 1 | . 1 . Transport Status 1 | . 1 . Investigation Status 1 | . 1 . Fabricator Hacks . | . . . Repair Station Hacks . | . . . Recycling Unit Hacks 1 | . 1 . Retrieve Components 1 | . 1 . Scanalyzer . | . . . Garrison Access Hacks . | . . . Unauthorized Hacks 10 | . 10 . Terminals 9 | . 9 . Botnet 3 | . 3 . Operators 1 | . 1 . Skim 5 | . 5 . Fabricators . | . . . Repair Stations . | . . . Recycling Units 1 | . 1 . Recyclers 1 | . 1 . Scanalyzers . | . . . Garrison Access . | . . . Data Cores Recovered . | . . . Used . | . . . Hacking Detections 7 | . 7 . Full Trace Events . | . . . Feedback Events . | . . . Feedback Blocked . | . . . Robot Schematics Acquired . | . . . Robots Built . | . . . Authchips . | . . . Time . | . . . Total Robot Build Rating . | . . . Part Schematics Acquired . | . . . Parts Built . | . . . Authchips . | . . . Time . | . . . Total Part Build Rating . | . . . Parts Repaired . | . . . Time . | . . . Parts Recycled . | . . . Recycled Matter . | . . . Retrieved Matter . | . . . Retrieved Components . | . . . Parts Scanalyzed . | . . . Part Schematics Acquired . | . . . Parts Damaged . | . . . Bothacking | -11 -10 -10 ------------ Run | Yrd Mat Sub Used RIF Installer . | . . . Robots Hacked 2 | . 2 . Non-combat . | . . . Combat 2 | . 2 . Robot Hacks Applied 2 | . 2 . find_shortcuts 2 | . 2 . Relay Couplers Released . | . . . Fabnet Peak Effective % . | . . . Robots Rewired . | . . . Allies Hacked . | . . . Hacks Repelled . | . . . Allies | -11 -10 -10 -------- Run | Yrd Mat Sub Total Allies . | . . . Largest Group . | . . . Highest-Rated Group . | . . . Highest-Rated Ally . | . . . Total Orders . | . . . Ally Attacks . | . . . Total Damage . | . . . Kills . | . . . Allies Corrupted . | . . . Allies Melted . | . . . Intel | -11 -10 -10 ------- Run | Yrd Mat Sub Active Infowar (turns) 385 | . 3 382 Optics 89 | . . 89 Terrain 296 | . 3 293 Seismic 296 | . 3 293 Robot Analysis Total 5 | . 4 1 Derelict Logs Recovered 2 | . . 2 Drone Launches . | . . . Drone Recoveries . | . . . Exploration | -11 -10 -10 ------------- Run | Yrd Mat Sub Turns Passed 806 | 11 388 407 Spaces Moved 681 | 21 244 416 Core 75 | 21 51 3 Treads . | . . . Legs 165 | . 165 . Wheels 416 | . 3 413 Hover . | . . . Flight 25 | . 25 . Fastest Speed 37 | 50 37 50 Average Speed 87 | 50 96 84 Slowest Speed 120 | 50 120 120 Overloaded Moves . | . . . Propulsion Burnouts . | . . . Robots Hopped . | . . . Potential Cave-ins . | . . . Cave-ins Triggered . | . . . Exploration Rate (%) 27 | 3 50 30 Regions Visited 2 Branch Regions 1 Pre-discovered Areas 2 | . . 2 Known Exits Taken . | . . . Unknown Exits Taken 2 | 1 1 . Scrap Searched . | . . . Spaces Dug . | . . . Terrain Destroyed 3 | . . 3 Melee . | . . . Projectile 3 | . . 3 AOE . | . . . Terrain Rammed . | . . . Walls Destroyed . | . . . Machines Disabled . | . . . Actions | -11 -10 -10 --------- Run | Yrd Mat Sub Total 829 | 20 351 458 Wait 78 | . 50 28 Move 679 | 20 243 416 Hop . | . . . Pick Up 2 | . . 2 Fast Attach . | . . . Attach . | . . . Detach . | . . . Swap . | . . . Drop . | . . . Fire 63 | . 51 12 Melee . | . . . Ram . | . . . Kick 5 | . 5 . Crush . | . . . Escape Stasis . | . . . Rewire . | . . . Trap . | . . . Miscellaneous 2 | . 2 . Route ------- -11/Scrapyard -10/Materials (discovered 2 exits: [*Min] / [*Sub]) -10/Subcaves (discovered 2 exits: [*Mat x2]) History --------- Turn | Location | Event 3 | -11/Scrapyard | Discovered new exit (range 15) 12 | -11/Scrapyard | Entered Materials 146 | -10/Materials | Lost 3 parts (1p1n1w) 184 | -10/Materials | Core integrity fell below 50% 311 | -10/Materials | Discovered new exit (range 11) 390 | -10/Materials | Discovered new exit (range 5) 400 | -10/Materials | Entered Subcaves 401 | -10/Subcaves | Approached by a straggling Scientist 498 | -10/Subcaves | Shifting Twisted Machinery released Mak. Spear 501 | -10/Subcaves | Shifting Twisted Machinery released Sub. Machine Gun 501 | -10/Subcaves | Discovered new exit (range 12) 543 | -10/Subcaves | Learned location of Zion (-7) 543 | -10/Subcaves | Met a Zionite searching for "candidates" 557 | -10/Subcaves | Discovered new exit (range 10) 804 | -10/Subcaves | Core integrity fell below 20% 807 | -10/Subcaves | Destroyed by QH-75I(R) with Subdweller Machine Gun Last Messages --------------- Mak. Spear falls loose from the Twisted Machinery. Sub. Machine Gun falls loose from the Twisted Machinery. 00501_ EXIT=FOUND 00525_ Acquired derelict log, extracted data. Data stored: Storage entrances (x1). 00532_ NF-S2P(z): "She is not going to be happy we haven't found any suitable candidates yet." 00543_ NF-S2P(z): "Hey you! It's really dangerous down here, I feel that you could die at any moment. For your health and safety might I suggest a trip to Zion?" World map updated: -7/Zion. 00557_ EXIT=FOUND 00693_ Released control of T-07 Excavator. 00694_ T-07 Excavator reactivates. 00718_ Took control of QP-RFB(R). 00718_ Extracted analysis data for QP-RFB(R). 00722_ DT-MTA(R) destroyed. 00726_ Acquired Scrap Shield Fragment. 00795_ Critical hit (Destroy). 00795_ Scrap Shield destroyed. Map ----- +----------------------------------------------------+ | ??????????????????????????????????????????# = *## | | ??????????????????????????????????????????# %![ | | ??????????????????????????????????????????# ### | | ?????????????????????????????????????#????####?# | | ??????????????????????????????????????#????????# | | ???????????????????????????????????????????????# | | ???????????????????????????????????????????????# | | ???????????????????????????????????????????????# | | ??????????????????????????????????????????????## | | ??????????????????????????????????????????????# | | ??????????????????????????????????#???????????# | | ??????????????????????????????????????????????# # | | ?????????????????????????????????????????????## # | | ????????????????????????????????????#?????#### | | ?????????????????????????????????????###### | | ??????????????????????????????????#### # | | ?????????????????????????????????## | | ????????????????????????????###?## | | ????????????? ?????????????## ### ## | | ???????????? ???????????## ## ###### | | ????????????? ????????## ## ##????## ## | | ???????????????#"" ??##### " ### #??????## #### | | ????????????????#" ## ## """ ## ####????###??? | | ????????????????# R " ####???????# | | ????????????????# ""; R #???????? | | ???????????????# "" ##;R #???? | | ???????????????## "# ??##; ##### #???? | | ???????????????# ?" ???###" #???## #??? | | ???????????????? ?" ??????##"#?????## ##### ##??? | | ?????????????????""#???????###???????##????? #???? | | ?????????????????" ?????????????????????????? #?#? | | ?????????????????#???????????????????????????????? | | ?????????????????????????????????????????????????? | | ?????????????????????????????????????????????????? | | ?????????????????????????????????????????????????? | | ?????????????????????????????????????????????????? | | ?????????????????????????????????????????????????? | | ?????????????????????????????????????????????????? | | ?????????????????????????????????????????????????? | | ?????????????????????????????????????????????????? | | ?????????????????????????????????????????????????? | | ?????????????????????????????????????????????????? | | ?????????????????????????????????????????????????? | | ?????????????????????????????????????????????????? | | ?????????????????????????????????????????????????? | | ?????????????????????????????????????????????????? | | ?????????????????????????????????????????????????? | | ?????????????????????????????????????????????????? | | ?????????????????????????????????????????????????? | | ?????????????????????????????????????????????????? | +----------------------------------------------------+ Best States ------------- Heat Dissipation 40 Coolant Potential 50 Energy Generation 20 Energy Capacity 150 Matter Stores 100 Matter Capacity 100 Sight Range 19 Terrain Scan Range 16 Terrain Scan Density 10 Armor Coverage 800 Evasion (%) 62 Item Schematics ----------------- None Robot Schematics ------------------ None Fabricated ------------ Nothing Repaired ---------- Nothing Alien Tech Used ----------------- None Achievements -------------- None Challenges ------------ None Polymind | -11 -10 -10 ---------- Run | Yrd Mat Sub Hosts 4 | . 3 1 Combat Hostiles 3 | . 2 1 Allies . | . . . Unique Host Classes 4 | . 3 1 Average Host Suspicion 47 | . 99 . Unsuspicious Activity 148 | . 12 136 Returns to Shadow 1 | . 1 . Fuzzy Dispatches . | . . . Protomatter Created 23 | . 23 . Used 74 | . 41 33 Decayed . | . . . Highest Spend 33 | . 30 33 Top 5 Hosts by Kills: G-47 Trooper (-10/Materials: 5) S-10 Pest (-10/Materials: 2) QP-RFB(R) (-10/Subcaves: 1) Game ------ Seed NodeTargetingDoublenader Manual? 0 Play Time 00:14:27 Cumulative 353.2 hours Start 2025.06.07 @ 23:57:16 End 2025.06.08 @ 00:10:17 Sessions 1 Manual Loads 0 Difficulty Rogue Special Mode Winter2022/Polymind Game No. 170 Rogue 127 Adventurer 43 Explorer 0 Win Type - Total 7 Types 4/0/1/0/0/0/0/1/0/1 Lore% 85 Gallery% 74 Achievement% 66 Wizard Run 0 Options --------- Layout 0 ASCII 0 Keyboard 0 Movement Numpad Keybinds 0 Fullscreen 1 Font 24/Smallcaps Map View 76x50 Zoom Use 0% Tactical HUD 1 Map Filters NONE Filters NONE Steam 1 RUN: d33c9a6e-b9be-4cbf-8b0b-7fe5128cf22f